[Event "68th GRE-ch 2018"]
[Site "Thessaloniki"]
[Date "2018.12.18"]
[Round "7"]
[White "Koutoukidis, Panagiotis"]
[Black "Skaperdas, Kostantinos"]
[Result "1/2-1/2"]
[ECO "C15"]
[WhiteElo "2357"]
[BlackElo "2231"]
[Annotator "NA"]
[PlyCount "63"]
[EventDate "2018.12.12"]
[EventType "tourn"]
[EventCountry "GRE"]
[SourceTitle "playchess.com"]
[Source "ChessBase"]
[SourceQuality "1"]
[TimeControl "40/5400+30:1800+30"]

1. e4 {[%emt 0:00:00]} e6 {[%emt 0:00:00]} 2. d4 {[%emt 0:00:00]} d5 {[%emt 0:00:00]} 3. Nc3 {[%emt 0:00:00]} Bb4 {[%emt 0:00:02]} 4. Nge2 {[%emt 0:00:00]} Nf6 {[%emt 0:00:09]} 5. e5 {[%emt 0:00:07]} Nfd7 {[%emt 0:00:01]} 6. f4 {[%emt 0:00:36]} O-O {[%emt 0:00:18]} 7. Be3 {[%emt 0:01:36]} c5 {[%emt 0:07:43]} 8. dxc5 {[%emt 0:11:33]} Nc6 {[%emt 0:04:32]} 9. a3 {[%emt 0:15:06]} Bxc5 {[%emt 0:00:29]} 10. Qd2 {[%emt 0:04:30]} Qb6 {[%emt 0:23:08]} 11. Bxc5 {[%emt 0:00:13]} Qxc5 {[%emt 0:04:33]} 12. O-O-O {[%emt 0:02:57]} Nb6 {[%emt 0:09:40]} 13. Nd4 {[%emt 0:00:42]} Nc4 {[%emt 0:07:31]} (13... Nxd4 $11 {keeps the balance.} 14. Qxd4 Qxd4 15. Rxd4 Bd7) 14. Bxc4 {[%emt 0:00:45]} Qxc4 {[%emt 0:00:06]} 15. b3 {[%emt 0:10:12]} Qc5 {[%emt 0:07:10]} 16. Kb2 {[%emt 0:00:13]} Bd7 $11 {[%emt 0:01:29]} 17. Nxc6 {[%emt 0:04:20]} Bxc6 {[%emt 0:03:08]} 18. Qd4 {[%emt 0:01:00]} b6 {[%emt 0:01:08]} 19. Rhe1 {[%emt 0:01:50]} Rac8 {[%emt 0:00:19]} 20. g4 {[%emt 0:00:50]} Rc7 {[%emt 0:00:49]} 21. g5 {[%emt 0:02:41]} Rfc8 {[%emt 0:02:47]} 22. Re3 {[%emt 0:00:10]} a5 {[%emt 0:09:16]} 23. Rd2 {[%emt 0:04:39]} Be8 {[%emt 0:02:24]} 24. Rh3 {[%emt 0:03:51]} Qxd4 {[%emt 0:02:25]} 25. Rxd4 {[%emt 0:00:13]} f6 {[%emt 0:00:01]} 26. exf6 {[%emt 0:06:35]} Bg6 {[%emt 0:00:36]} 27. fxg7 {[%emt 0:01:04]} Kxg7 {[%emt 0:01:18]} 28. Re3 {[%emt 0:01:37]} Bf5 {[%emt 0:01:45]} 29. a4 {[%emt 0:06:29]} Kg6 {[%emt 0:01:16]} 30. Rg3 {[%emt 0:02:57]} Kh5 {[%emt 0:03:34]} 31. Rd2 {[%emt 0:00:15]} Kg6 {[%emt 0:01:30]} 32. Re3 {[%emt 0:01:04]} 1/2-1/2

[Event "68th GRE-ch 2018"]
[Site "Thessaloniki"]
[Date "2018.12.18"]
[Round "7"]
[White "Makka, Evanthia"]
[Black "Kanakaris, Georgios"]
[Result "1/2-1/2"]
[ECO "A49"]
[WhiteElo "2084"]
[BlackElo "2401"]
[Annotator "NA"]
[PlyCount "96"]
[EventDate "2018.12.12"]
[EventType "tourn"]
[EventCountry "GRE"]
[SourceTitle "playchess.com"]
[Source "ChessBase"]
[SourceQuality "1"]
[TimeControl "40/5400+30:1800+30"]

1. d4 {[%emt 0:00:00]} Nf6 {[%emt 0:00:00]} 2. Nf3 {[%emt 0:00:00]} g6 {[%emt 0:00:00]} 3. g3 {[%emt 0:00:54]} Bg7 {[%emt 0:00:00]} 4. Bg2 {[%emt 0:00:11]} O-O {[%emt 0:00:06]} 5. O-O {[%emt 0:00:12]} d6 {[%emt 0:00:06]} 6. b3 {[%emt 0:00:37]} e5 {[%emt 0:02:58]} 7. dxe5 {[%emt 0:06:05]} dxe5 {[%emt 0:00:14]} 8. Qxd8 {[%emt 0:06:11]} Rxd8 {[%emt 0:00:24]} 9. Bb2 {[%emt 0:00:16]} e4 {[%emt 0:03:29]} 10. Nfd2 {[%emt 0:04:09]} Bf5 {[%emt 0:03:22]} 11. Nc4 {[%emt 0:02:16]} Nc6 {[%emt 0:01:22]} 12. Nba3 {[%emt 0:11:46]} Nd5 {[%emt 0:20:26]} 13. Bxg7 {[%emt 0:08:37]} Kxg7 {[%emt 0:00:05]} 14. Rfe1 {[%emt 0:01:47]} Nc3 {[%emt 0:04:27]} 15. Ne3 {[%emt 0:01:50]} Nd4 $15 {[%emt 0:11:10]} 16. Kf1 {[%emt 0:15:59]} h5 {[%emt 0:28:53]} 17. h3 {[%emt 0:06:30]} a6 {[%emt 0:08:37]} 18. g4 {[%emt 0:13:33]} hxg4 {[%emt 0:00:05]} 19. hxg4 {[%emt 0:00:04]} Be6 {[%emt 0:00:07]} 20. Nb1 {[%emt 0:02:25]} Nxb1 {[%emt 0:04:25]} 21. Raxb1 {[%emt 0:00:07]} f5 {[%emt 0:00:04]} 22. c3 {[%emt 0:04:19]} Nb5 {[%emt 0:00:12]} 23. gxf5 {[%emt 0:02:35]} gxf5 {[%emt 0:00:05]} 24. f4 {[%emt 0:05:15]} Kf6 {[%emt 0:02:58]} 25. c4 {[%emt 0:03:49]} Nd4 {[%emt 0:02:10]} 26. Kf2 {[%emt 0:00:11]} Rh8 {[%emt 0:02:51]} 27. Rh1 {[%emt 0:01:33]} Bf7 {[%emt 0:01:10]} 28. Rxh8 {[%emt 0:01:07]} Rxh8 {[%emt 0:00:08]} 29. Rd1 {[%emt 0:00:22]} c5 {[%emt 0:00:13]} 30. b4 {[%emt 0:00:20]} Rh4 {[%emt 0:06:51]} 31. Kg3 {[%emt 0:00:15]} Rxf4 {[%emt 0:04:55]} 32. Nd5+ {[%emt 0:01:44]} Bxd5 {[%emt 0:00:07]} 33. Kxf4 {[%emt 0:00:20]} Nxe2+ {[%emt 0:01:11]} 34. Ke3 {[%emt 0:00:04]} Bxc4 {[%emt 0:00:03]} 35. bxc5 {[%emt 0:01:30]} f4+ {[%emt 0:02:37]} 36. Kf2 {[%emt 0:00:08]} f3 {[%emt 0:00:40]} 37. Bf1 {[%emt 0:00:29]} Ke5 {[%emt 0:00:32]} 38. Bxe2 {[%emt 0:00:52]} fxe2 {[%emt 0:01:18]} 39. Rd7 {[%emt 0:00:27]} Bxa2 {[%emt 0:01:25]} 40. Rxb7 {[%emt 0:00:00]} Bc4 {[%emt 0:00:00]} 41. c6 {[%emt 0:12:11]} Kd6 {[%emt 0:01:53]} 42. c7 {[%emt 0:00:31]} Kd7 {[%emt 0:02:46]} 43. Rb4 {[%emt 0:03:14]} Bd3 {[%emt 0:00:13]} 44. Rxe4 {[%emt 0:01:43]} Bxe4 {[%emt 0:00:05]} 45. c8=Q+ {[%emt 0:00:21]} Kxc8 {[%emt 0:00:05]} 46. Kxe2 {[%emt 0:00:06]} a5 {[%emt 0:00:05]} 47. Kd2 {[%emt 0:00:06]} a4 {[%emt 0:00:04]} 48. Kc3 {[%emt 0:00:08]} Bd5 1/2-1/2

[Event "68th GRE-ch 2018"]
[Site "Thessaloniki"]
[Date "2018.12.19"]
[Round "8"]
[White "Skaperdas, Kostantinos"]
[Black "Ioannidis, Evgenios"]
[Result "0-1"]
[ECO "A46"]
[WhiteElo "2231"]
[BlackElo "2382"]
[Annotator "NA"]
[PlyCount "72"]
[EventDate "2018.12.12"]
[EventType "tourn"]
[EventCountry "GRE"]
[SourceTitle "playchess.com"]
[Source "ChessBase"]
[SourceQuality "1"]
[TimeControl "40/5400+30:1800+30"]

1. d4 {[%emt 0:00:00]} Nf6 {[%emt 0:00:36]} 2. Nf3 {[%emt 0:00:00]} e6 {[%emt 0:01:29]} 3. Bf4 {[%emt 0:00:12]} c5 {[%emt 0:07:09]} 4. e3 {[%emt 0:00:30]} cxd4 {[%emt 0:03:01] LiveBook: 127 Games} 5. exd4 {[%emt 0:00:28]} b6 {[%emt 0:00:25]} 6. Nbd2 {[%emt 0:01:40]} Bb7 {[%emt 0:00:29]} 7. Bd3 {[%emt 0:00:09]} Be7 {[%emt 0:00:49]} 8. h3 {[%emt 0:00:05]} d6 {[%emt 0:02:18] A47: 1 d4 Nf6 2 Nf3 b6: Torre, London and Colle Systems} 9. a4 $146 {[%emt 0:12:54]} ({Predecessor:} 9. O-O O-O 10. Re1 Nbd7 11. a4 a6 12. Bh2 h6 13. a5 b5 14. c4 bxc4 15. Nxc4 Qb8 16. Ra3 {0-1 (86) Kamsky,G (2676)-Sjugirov,S (2650) Sochi 2017}) 9... a6 {[%emt 0:05:52]} 10. Nc4 {[%emt 0:01:07]} O-O {[%emt 0:02:40]} 11. O-O {[%emt 0:01:08]} Nd5 {[%emt 0:14:10]} 12. Bh2 {[%emt 0:15:55]} Qc7 {[%emt 0:00:47]} 13. c3 {[%emt 0:06:46]} Nd7 {[%emt 0:01:31]} 14. Qe2 {[%emt 0:03:50]} Rfd8 {[%emt 0:09:40]} 15. Rfe1 {[%emt 0:11:59]} Nf8 {[%emt 0:03:56]} 16. Nfd2 {[%emt 0:00:58]} Ng6 $11 {[%emt 0:05:00]} 17. Qh5 {[%emt 0:00:42]} (17. Be4 Rab8) 17... Nf6 {[%emt 0:09:12]} 18. Qe2 {[%emt 0:00:38]} Nh4 {[%emt 0:00:55]} 19. Ne3 {[%emt 0:00:37]} Qc6 {[%emt 0:00:56]} 20. Bg3 {[%emt 0:05:31]} Ng6 {[%emt 0:01:15]} 21. d5 {[%emt 0:07:03]} (21. a5 $14) 21... exd5 $14 {[%emt 0:00:48]} ({Wrong is} 21... Nxd5 $2 22. Nxd5 Bg5 23. Ne3 $18) 22. Nf3 {[%emt 0:04:29]} Re8 {[%emt 0:01:09]} 23. Nd4 {[%emt 0:00:23]} Qc7 {[%emt 0:00:50]} 24. Nef5 {[%emt 0:03:18]} Bf8 {[%emt 0:00:13]} 25. Qc2 {[%emt 0:02:19]} Ne4 {[%emt 0:02:10]} 26. Bh2 {[%emt 0:00:15]} Ne5 {[%emt 0:00:55]} 27. Bf1 {[%emt 0:02:06]} g6 {[%emt 0:04:08]} 28. Ne3 {[%emt 0:00:16]} Bh6 {[%emt 0:04:28]} 29. Ng4 {[%emt 0:01:58]} Bg7 {[%emt 0:01:39]} 30. f3 {[%emt 0:00:14]} Nxg4 {[%emt 0:00:09]} 31. Bd3 {[%emt 0:07:12]} Nxh2 {[%emt 0:03:55]} 32. fxe4 {[%emt 0:00:09]} dxe4 {[%emt 0:00:12]} 33. Bxe4 {[%emt 0:00:18]} d5 {[%emt 0:00:33]} 34. Bd3 {[%emt 0:00:13]} Qg3 {[%emt 0:01:47]} 35. Ne2 {[%emt 0:01:38]} Nf3+ {[%emt 0:00:05]} 36. Kf1 {[%emt 0:00:07]} Nxe1 0-1

[Event "68th GRE-ch 2018"]
[Site "Thessaloniki"]
[Date "2018.12.19"]
[Round "8"]
[White "Makka, Evanthia"]
[Black "Gouloutis, Nikolaos"]
[Result "0-1"]
[ECO "A46"]
[WhiteElo "2084"]
[BlackElo "2353"]
[Annotator "NA"]
[PlyCount "62"]
[EventDate "2018.12.12"]
[EventType "tourn"]
[EventCountry "GRE"]
[SourceTitle "playchess.com"]
[Source "ChessBase"]
[SourceQuality "1"]
[TimeControl "40/5400+30:1800+30"]

1. d4 {[%emt 0:00:00]} Nf6 {[%emt 0:00:00]} 2. Nf3 {[%emt 0:00:00]} e6 {[%emt 0:00:00]} 3. e3 {[%emt 0:00:00]} c5 {[%emt 0:00:00]} 4. Bd3 {[%emt 0:00:44]} cxd4 {[%emt 0:01:56]} 5. exd4 {[%emt 0:00:09]} Be7 {[%emt 0:00:05]} 6. O-O {[%emt 0:00:35]} O-O {[%emt 0:00:06]} 7. c4 {[%emt 0:01:45]} d5 {[%emt 0:00:13]} 8. Nc3 {[%emt 0:00:49]} dxc4 {[%emt 0:02:19]} 9. Bxc4 {[%emt 0:00:10]} Nbd7 {[%emt 0:00:08]} 10. Bb3 {[%emt 0:01:48] D40: Queen's Gambit Declined: Semi-Tarrasch with 5 e3} (10. a3 Nb6 11. Ba2 Bd7 12. Ne5 Rc8 13. Qf3 Bc6 14. Nxc6 Rxc6 15. Rd1 Nfd5 16. Ne4 Qc7 17. b4 Nc3 18. Nxc3 Rxc3 19. Qe4 {½-½ (36) Guliev,L (2336)-Tarlev,K (2544) Mersin 2017}) 10... Nb6 {[%emt 0:01:58] LiveBook: 13 Games} 11. Qd3 {[%emt 0:01:53]} Bd7 {[%emt 0:24:33]} 12. Ne5 {[%emt 0:02:18]} Rc8 {[%emt 0:00:46]} 13. Bg5 {[%emt 0:09:16]} Bc6 {[%emt 0:01:56]} 14. Bc2 {[%emt 0:12:01]} g6 {[%emt 0:00:24]} 15. Rae1 $146 {[%emt 0:06:40]} ({Predecessor:} 15. Rad1 a6 16. Rfe1 Nbd5 17. Bb3 b5 18. Qh3 Qd6 19. Nxc6 Rxc6 20. Nxd5 exd5 {1-0 (42) Thielsch,N (2347)-Grohde,W (2168) Hamburg 2005}) 15... Nbd5 {[%emt 0:17:12]} 16. Qh3 {[%emt 0:22:12]} Nh5 $11 {[%emt 0:10:28]} 17. Nxc6 {[%emt 0:08:18]} Rxc6 {[%emt 0:01:02]} 18. Bh6 {[%emt 0:01:50]} Ng7 {[%emt 0:03:22]} 19. Bb3 {[%emt 0:14:24]} Nxc3 {[%emt 0:03:58]} 20. bxc3 {[%emt 0:00:53]} Bg5 {[%emt 0:00:43]} 21. Bxg7 {[%emt 0:01:32]} Kxg7 {[%emt 0:00:04]} 22. f4 {[%emt 0:01:24]} Bf6 {[%emt 0:00:15]} 23. Rd1 {[%emt 0:06:13]} h5 {[%emt 0:20:44]} 24. Rd3 {[%emt 0:02:20]} Qb6 {[%emt 0:03:02]} 25. Kh1 {[%emt 0:02:29]} Rfc8 {[%emt 0:01:09]} 26. Rg3 {[%emt 0:01:10]} Qa5 {[%emt 0:02:59]} 27. d5 {[%emt 0:01:23]} Rxc3 {[%emt 0:01:39]} 28. dxe6 {[%emt 0:00:19]} Rc1 {[%emt 0:00:02]} 29. Rgf3 {[%emt 0:00:26]} Qa6 {[%emt 0:00:34]} 30. Bd1 {[%emt 0:01:21]} Rd8 {[%emt 0:00:57]} 31. Be2 {[%emt 0:00:34]} Qxe2 {[%emt 0:00:10]} 0-1

[Event "68th GRE-ch 2018"]
[Site "Thessaloniki"]
[Date "2018.12.20"]
[Round "9"]
[White "Gouloutis, Nikolaos"]
[Black "Kanakaris, Georgios"]
[Result "1/2-1/2"]
[ECO "D30"]
[WhiteElo "2353"]
[BlackElo "2401"]
[Annotator "ChessBase"]
[PlyCount "37"]
[EventDate "2018.12.12"]
[EventType "tourn"]
[EventCountry "GRE"]
[SourceTitle "playchess.com"]
[Source "ChessBase"]
[SourceQuality "1"]
[TimeControl "40/5400+30:1800+30"]

1. d4 {[%emt 0:00:00]} d5 {[%emt 0:00:00]} 2. c4 {[%emt 0:00:00]} e6 {[%emt 0:00:21]} 3. Nf3 {[%emt 0:04:29]} Nf6 {[%emt 0:00:06]} 4. g3 {[%emt 0:01:46]} Bb4+ {[%emt 0:00:47]} 5. Bd2 {[%emt 0:00:51]} Be7 {[%emt 0:00:28]} 6. Bg2 {[%emt 0:00:06]} O-O {[%emt 0:00:25]} 7. O-O {[%emt 0:00:12]} c6 {[%emt 0:00:59]} 8. Qc2 {[%emt 0:00:42]} b6 {[%emt 0:00:48]} 9. Rd1 {[%emt 0:00:42]} Ba6 {[%emt 0:01:28]} 10. b3 {[%emt 0:00:07]} Nbd7 {[%emt 0:00:39]} 11. Nc3 {[%emt 0:02:32]} Rc8 {[%emt 0:01:59]} 12. Bf4 {[%emt 0:03:20]} Nh5 {[%emt 0:01:11]} 13. Bc1 {[%emt 0:00:06]} Nhf6 {[%emt 0:00:23]} 14. e4 {[%emt 0:01:02]} dxc4 {[%emt 0:02:08]} 15. Bf4 {[%emt 0:01:27]} Nh5 {[%emt 0:01:10]} 16. Bc1 {[%emt 0:00:24]} Nhf6 {[%emt 0:00:17]} 17. Bf4 {[%emt 0:02:04]} Nh5 {[%emt 0:00:19]} 18. Bc1 {[%emt 0:00:11]} Nhf6 {[%emt 0:00:08]} 19. Bf4 1/2-1/2